Cogmind - Beta 15 @@@ ROGUE MODE // 2025.10.06 @ 20:42:08 Player: DietSnapple Result: Self-destructed Performance ------------- Evolutions (1) 500 Regions Visited (2) 400 Robots Destroyed (41) 205 Value Destroyed (1018) 1018 Prototype IDs (1) 20 Alien Tech Used (0) 0 Bonus (0) 0 TOTAL SCORE: 2143 Bonus ------- None Cogmind --------- Core Integrity 205/400 Matter 188/300 Energy 100/100 System Corruption 3% Temperature Cool (29) Movement Core (50) Location -9/Materials Parts ------- > --- POWER (1) -------- (None) > --- PROPULSION (3) --- (None) > --- UTILITY (3) ------ Weight Redist. System Hacking Suite > --- WEAPON (2) ------- Enhanced Autogun > --- INVENTORY (5) ---- Small Storage Unit Hardlight Generator Faulty Improved EM Shotgun Light Assault Rifle Enhanced Autogun Peak State ------------ > --- POWER ------------ (None) > --- PROPULSION ------- Flight Unit > --- UTILITY ---------- Weight Redist. System Hardlight Generator Hacking Suite > --- WEAPON ----------- Enhanced Autogun Enhanced Autogun > --- INVENTORY -------- Small Storage Unit Light Assault Rifle Enhanced Autogun [Rating: 17] Favorites ----------- Power Ion Engine Engine Ion Engine Propulsion Light Treads Treads Light Treads Wheel Wheel Flight Unit Flight Unit Utility Weight Redist. System Device Weight Redist. System Storage Small Storage Unit Processor Targeting Computer Hackware Hacking Suite Weapon Enhanced Autogun Energy Gun Small Laser Ballistic Gun Enhanced Autogun Build | -11 -10 -9 ------- Run | Yrd Mat Mat Slots Evolved 2 | . . 2 Power . | . . . Propulsion 1 | . . 1 Utility 1 | . . 1 Weapon . | . . . Parts Attached 22 | 9 8 5 Power 3 | 1 1 1 Engine 3 | 1 1 1 Core . | . . . Reactor . | . . . Propulsion 7 | 4 2 1 Treads 3 | 2 . 1 Leg . | . . . Wheel 2 | 2 . . Hover . | . . . Flight 2 | . 2 . Utility 6 | 1 4 1 Device 3 | . 2 1 Storage 1 | 1 . . Processor 1 | . 1 . Hackware 1 | . 1 . Protection . | . . . Artifact . | . . . Weapon 6 | 3 1 2 Energy Gun 2 | 2 . . Energy Cannon . | . . . Ballistic Gun 4 | 1 1 2 Ballistic Cannon . | . . . Launcher . | . . . Special Weapon . | . . . Impact Weapon . | . . . Slashing Weapon . | . . . Piercing Weapon . | . . . Special Melee Weapon . | . . . Unidentified Prototypes 1 | . . 1 Parts Lost 14 | . 7 7 Power 3 | . 1 2 Propulsion 5 | . 2 3 Utility 2 | . 2 . Weapon 4 | . 2 2 Highest Loss Streak 3 | . 3 3 To Critical Strikes 1 | . . 1 Average Backups 2 | 2 1 3 Power . | . . . Propulsion . | 1 . . Utility . | . . 1 Weapon 1 | . . 2 Tool/Special . | . . . Unused Backups 5 | . 1 4 Power . | . . . Propulsion . | . . . Utility . | . . . Weapon 5 | . 1 4 Tool/Special . | . . . Average Slot Usage (%) 78 | . 90 65 Engine 11 | . 12 9 Treads 9 | . 10 9 Wheel 7 | . 15 . Flight 2 | . 1 3 Device 7 | . 4 11 Storage 6 | . 13 . Hackware 6 | . 1 11 Energy Gun 7 | . 14 . Ballistic Gun 17 | . 13 20 Peak Build Rating 17 | 6 9 17 Average Rating 10 | 4 6 15 On Entrance 4 | . 6 8 Naked Turns . | . . . Heaviest Build 14 | 13 14 13 Greatest Support 40 | 40 40 26 Greatest Overweight (x) 2 | 1 2 1 Average Overweight (x) . | . . . Largest Inventory Capacity 8 | 8 8 5 Average Capacity 6 | 7 7 5 Most Carried 5 | 3 4 5 Average Carried 2 | 2 1 3 Final Capacity 8 | 8 5 5 Final Carried 5 | 3 2 5 Class Distribution -------------------- 55% | Mutant 44% | Scavenger-Mutant Dominant Class ---------------- Mutant | -10/Materials Scavenger-Mutant | -9/Materials Resources | -11 -10 -9 ----------- Run | Yrd Mat Mat Matter Collected 756 | 200 332 224 Remotely . | . . . Salvage Created 1497 | . 940 557 Parts 93 | . 58 35 Haulers Intercepted 2 | . 2 . Recyclers Shooed 1 | . . 1 Parts Field Recycled . | . . . Retrieved Matter . | . . . Parts Self-Destructed . | . . . Prevented . | . . . Kills | -11 -10 -9 ------- Run | Yrd Mat Mat Combat Hostiles Destroyed 28 | . 16 12 Guns 28 | . 16 12 Classes Destroyed 10 | . 8 2 Worker 1 | . 1 . Tunneler 1 | . 1 . Hauler 2 | . 2 . Recycler 2 | . 2 . Operator 5 | . 3 2 Watcher 2 | . 1 1 Swarmer 6 | . 5 1 Grunt 18 | . 11 7 Duelist 2 | . . 2 Sentry 2 | . . 2 Best Kill Streak 8 | . 8 3 Combat Bots Only 5 | . 5 3 Max Kills in Single Turn 2 | . 2 1 Gunslinging 1 | . 1 . Exploded . | . . . Melee . | . . . Uniques/NPCs Destroyed . | . . . Combat | -11 -10 -9 -------- Run | Yrd Mat Mat Hostile Shots Fired 184 | . 97 87 Missed 56 | . 26 30 Hits 128 | . 71 57 Melee 1 | . . 1 Projectile 127 | . 71 56 Critical Strikes 3 | . . 3 Damage Taken 1583 | . 842 741 Core 359 | . 164 195 Absorbed by Shields . | . . . Core Remaining (%) 67 | 100 34 . Volleys Fired 129 | . 68 61 Largest 2 | . 2 2 Hottest 80 | . 80 60 Shots Fired 235 | . 131 104 Gun 235 | . 131 104 Cannon . | . . . Launcher . | . . . Special . | . . . Kinetic 157 | . 61 96 Thermal 53 | . 53 . Explosive . | . . . Electromagnetic 25 | . 17 8 Robot Hit Streak 11 | . 11 11 Robot Miss Streak 3 | . 3 3 Penetration Max . | . . . Secondary Targets 5 | . 4 1 Max Gunslinging Chain 1 | . 1 1 Shots Hit Robots 159 | . 94 65 Core Hits 70 | . 46 24 Critical Kills . | . . . Critical Parts Destroyed . | . . . Critical Strikes . | . . . Melee Attacks . | . . . Impact . | . . . Slashing . | . . . Piercing . | . . . Sneak Attacks . | . . . Combat Hostiles . | . . . Follow-up Attacks . | . . . Damage Inflicted 2156 | . 1132 1024 Guns 2156 | . 1132 1024 Cannons . | . . . Explosions . | . . . Melee . | . . . Ramming . | . . . Kinetic 1487 | . 523 964 Thermal 431 | . 431 . Explosive . | . . . Electromagnetic 238 | . 178 60 Impact . | . . . Slashing . | . . . Piercing . | . . . Highest Corruption 3 | . . 3 Average Corruption 2 | . . 2 Corruption Purged . | . . . Corruption Blocked . | . . . Effects 4 | . . 4 Message Errors 2 | . . 2 Energy Discharges 1 | . . 1 Misfires 1 | . . 1 Overload Shots . | . . . Overflow Damage . | . . . Projectiles . | . . . Explosions . | . . . Melee . | . . . Knockbacks . | . . . Impact . | . . . Kinetic . | . . . Secondary . | . . . Self-Inflicted Damage . | . . . Shots . | . . . Rammed 1 | . . 1 Targets Rammed 1 | . . 1 Kicked . | . . . Crushed . | . . . Highest Temperature 126 | . 126 66 Average Temperature 24 | . 27 18 Received Heat Transfer 744 | . 432 312 Siege Activations . | . . . Martial Activations . | . . . Shielding Activations . | . . . Robots Disrupted . | . . . Combat Hostiles . | . . . Robots Corrupted . | . . . Combat Hostiles . | . . . Parts Fried 1 | . 1 . Impact Corruptions . | . . . Robots Melted . | . . . Combat Hostiles . | . . . Parts Melted 2 | . 2 . Heat Transferred 975 | . 975 . Parts Sabotaged . | . . . Parts Stolen . | . . . Parts Stripped . | . . . Power Chain Reactions . | . . . Alert | -11 -10 -9 ------- Run | Yrd Mat Mat Maximum Alert Level . | . . . Low Security (%) 100 | 100 100 100 Level 1 . | . . . Level 2 . | . . . Level 3 . | . . . Level 4 . | . . . Level 5 . | . . . High Security . | . . . Max Security . | . . . Peak Influence 174 | . 174 83 Initial 33 | . . 33 Average 58 | . 95 30 Influence Increases 885 | . 471 414 Destroy 0b10 Robot/C 560 | . 320 240 Destroy 0b10 Robot/NC 65 | . 50 15 Destroy Leader 158 | . 86 72 Successful Hack 10 | . . 10 Destroy Structure 2 | . . 2 Partial Spotted 15 | . . 15 Lose Combat Pursuer 75 | . 15 60 Influence Decreases 838 | . 390 448 Entered New Map 48 | . . 48 Time Decay 658 | . 320 338 Lost Part 132 | . 70 62 Squads Dispatched 7 | . 4 3 Investigation 3 | . 1 2 Extermination . | . . . Reinforcement 4 | . 3 1 Assault . | . . . Garrison . | . . . Intercept . | . . . Searches Triggered . | . . . Construction Impeded . | . . . Haulers Reinforced . | . . . Active Scanning Responses . | . . . Cargo Convoy Interrupts . | . . . Stealth | -11 -10 -9 --------- Run | Yrd Mat Mat Distress Signals 4 | . 4 . Communications Jammed . | . . . Distress Signals . | . . . Times Spotted 53 | . 27 26 Peak Tracking Total 6 | . 6 6 Tactical Retreats 3 | . 1 2 Traps | -11 -10 -9 ------- Run | Yrd Mat Mat Traps Triggered 4 | . 1 3 Indirectly . | . . . Trap Hack Attempts . | . . . Triggered . | . . . Disarmed . | . . . Reprogrammed . | . . . Reused . | . . . Traps Extracted . | . . . Installed . | . . . Triggered . | . . . Machines | -11 -10 -9 ---------- Run | Yrd Mat Mat Machines Disabled . | . . . Max in Single Turn . | . . . Machines Repaired . | . . . Machines Dismantled . | . . . Machines Sabotaged . | . . . Overloaded Fab Kills . | . . . Hacking | -11 -10 -9 --------- Run | Yrd Mat Mat Machines Accessed 8 | . 4 4 Terminals 7 | . 3 4 Fabricators . | . . . Repair Stations . | . . . Recycling Units 1 | . 1 . Scanalyzers . | . . . Garrison Access . | . . . Total Hacks 30 | . 12 18 Successful 10 | . 4 6 Failed 20 | . 8 12 Catastrophic 1 | . 1 . Database Lockouts . | . . . Manual 27 | . 9 18 Terminals 27 | . 9 18 Fabricators . | . . . Repair Stations . | . . . Recycling Units 3 | . 3 . Scanalyzers . | . . . Garrison Access . | . . . Terminal Hacks 2 | . . 2 Branch Access Points 1 | . . 1 Terminal Index 1 | . . 1 Fabricator Hacks . | . . . Repair Station Hacks . | . . . Recycling Unit Hacks 2 | . 2 . Report Inventory 1 | . 1 . Retrieve Components 1 | . 1 . Scanalyzer . | . . . Garrison Access Hacks . | . . . Unauthorized Hacks 6 | . 2 4 Terminals 6 | . 2 4 Botnet 4 | . 1 3 Operators 2 | . 1 1 Fabricators . | . . . Repair Stations . | . . . Recycling Units . | . . . Scanalyzers . | . . . Garrison Access . | . . . Data Cores Recovered 1 | . . 1 Used . | . . . Hacking Detections 5 | . 2 3 Full Trace Events 2 | . 1 1 Feedback Events . | . . . Feedback Blocked . | . . . Robot Schematics Acquired . | . . . Robots Built . | . . . Authchips . | . . . Time . | . . . Total Robot Build Rating . | . . . Part Schematics Acquired . | . . . Parts Built . | . . . Authchips . | . . . Time . | . . . Total Part Build Rating . | . . . Parts Repaired . | . . . Time . | . . . Parts Recycled . | . . . Recycled Matter . | . . . Retrieved Matter . | . . . Retrieved Components 2 | . 2 . Parts Scanalyzed . | . . . Part Schematics Acquired . | . . . Parts Damaged . | . . . Bothacking | -11 -10 -9 ------------ Run | Yrd Mat Mat Used RIF Installer . | . . . Robots Hacked . | . . . Non-combat . | . . . Combat . | . . . Robot Hacks Applied . | . . . Relay Couplers Released . | . . . Fabnet Peak Effective % . | . . . Robots Rewired . | . . . Allies Hacked . | . . . Hacks Repelled . | . . . Allies | -11 -10 -9 -------- Run | Yrd Mat Mat Total Allies . | . . . Largest Group . | . . . Highest-Rated Group . | . . . Highest-Rated Ally . | . . . Total Orders . | . . . Ally Attacks . | . . . Total Damage . | . . . Kills . | . . . Allies Corrupted . | . . . Allies Melted . | . . . Intel | -11 -10 -9 ------- Run | Yrd Mat Mat Active Infowar (turns) 114 | . 114 . Sensors 114 | . 114 . Robot Analysis Total . | . . . Derelict Logs Recovered . | . . . Drone Launches . | . . . Drone Recoveries . | . . . Exploration | -11 -10 -9 ------------- Run | Yrd Mat Mat Turns Passed 1915 | 140 891 884 Spaces Moved 1287 | 91 733 463 Core 40 | 13 2 25 Treads 604 | 66 147 391 Legs . | . . . Wheels 480 | 12 468 . Hover . | . . . Flight 163 | . 116 47 Fastest Speed 37 | 50 37 37 Average Speed 111 | 136 89 142 Slowest Speed 160 | 160 160 160 Overloaded Moves . | . . . Propulsion Burnouts . | . . . Robots Hopped . | . . . Potential Cave-ins . | . . . Cave-ins Triggered . | . . . Exploration Rate (%) 46 | 5 82 53 Regions Visited 2 Branch Regions . Pre-discovered Areas . | . . . Known Exits Taken . | . . . Unknown Exits Taken 2 | 1 1 . Scrap Searched . | . . . Spaces Dug . | . . . Terrain Destroyed . | . . . Melee . | . . . Projectile . | . . . AOE . | . . . Terrain Rammed . | . . . Walls Destroyed . | . . . Machines Disabled . | . . . Actions | -11 -10 -9 --------- Run | Yrd Mat Mat Total 1557 | 102 838 617 Wait 95 | . 17 78 Move 1285 | 90 732 463 Hop . | . . . Pick Up 10 | 3 3 4 Fast Attach 16 | 6 5 5 Attach 6 | . 5 1 Detach 5 | . 3 2 Swap 5 | 3 2 . Drop 5 | . 3 2 Fire 129 | . 68 61 Melee . | . . . Ram . | . . . Kick . | . . . Crush 1 | . . 1 Escape Stasis . | . . . Rewire . | . . . Trap . | . . . Miscellaneous . | . . . Route ------- -11/Scrapyard -10/Materials (discovered 5 exits: *Mat x3 / [*Min x2]) -9/Materials (discovered 4 exits: [*Mat x2] / *Min x2) History --------- Turn | Location | Event 10 | -11/Scrapyard | Discovered new exit (range 16) 141 | -11/Scrapyard | Entered Materials 301 | -10/Materials | Build established: Mutant 332 | -10/Materials | Discovered new exit (range 10) 392 | -10/Materials | Discovered new exit (range 7) 587 | -10/Materials | Core integrity fell below 50% 652 | -10/Materials | Discovered new exit (range 13) 656 | -10/Materials | Lost 3 parts (1u2w) 966 | -10/Materials | Discovered new exit (range 14) 1018 | -10/Materials | Discovered new exit (range 11) 1032 | -10/Materials | Entered another Materials area 1032 | -9/Materials | Evolved 2 slots: Propulsion x1, Utility x1 1116 | -9/Materials | Lost 3 parts (1p1n1w) 1404 | -9/Materials | Identified exit to Mines 1450 | -9/Materials | Discovered new exit (range 3) 1483 | -9/Materials | Build established: Scavenger-Mutant 1887 | -9/Materials | Discovered new exit (range 16) 1916 | -9/Materials | Self-destructed Last Messages --------------- 01793_ R-06 Scavenger collects Hover Unit. 01794_ Acquired 20 matter. 01797_ K-01 Serf collects debris. 01844_ System corrupted: Energy discharge (-53). 01859_ System corrupted: FCS attempts to trigger Enh. Autogun. 01859_ System corrupted: Enh. Autogun misfires. 01862_ O-16 Technician: "IFF HANDSHAKE FAILED. SECURING TERMINAL." 01871_ ALERT: Hostiles spotted, dispatching reinforcements to Terminal M012. 01887_ EXIT=FOUND 01892_ O-16 Technician destroyed. 01894_ Acquired 10 matter. 01901_ L-31 Rogue destroyed. 01908_ Critical hit (Destroy). 01908_ Enh. Autogun destroyed. 01910_ R-06 Scavenger collects Imp. Aluminum Leg. 01914_ Critical hit (Burn: +37). 01914_ Imp. Ion Engine destroyed. 01915_ R-06 Scavenger collects Melee Analysis Suite. 01915_ Lgt. Treads destroyed. Map ----- +----------------------------------------------------+ | ??????????????# #??????## ##???????????????? | | ?????????????## ######## #???????????????? | | ?????????????# "" #???????????????? | | ?????????????# T #???????????????? | | ?????????????# #???????????????? | | ?????????????# #### #### #???????????????? | | ?????????????? ???# #??#######???????????????? | | ????????????????????# #????????????????????????? | | ????????????????????# #????????????????????????? | | ????????????????????# #????????????????????????? | | ????????????????????# ###### #?????????????? | | ????????????????????# > #?????????????? | | ??????????????????####/####### #?????????????? | | ??????????????????# #?????????????????????? | | ??????????????????/ #?????????????????????? | | ??????????????????# #####?????????????????? | | ??????????????????# + ??????????????????? | | ??????????????????# #?????????????????????? | | ??????????????????# #?????????????????????? | | ??????????????????# #?????????????????????? | | ??????????????????# #?????????????????????? | | ??????????????????# #?????????????????????? | | ??????????????????###+######?????????????????????? | | ????????????????????# #??????####????????????????? | | ???????????????????##r##### ##???????????????? | | ???????????????????# gY/@= #?????????? | | ???????????????????# gYg T < #?????????? | | ???????????????? g ??????????? | | ???????????????######;##### ###+##???????????? | | ??????????????????? ?????######????????????????? | | ??????????????????"""????????????????????????????? | | ????????????????# "Y?????????????????????????????? | | ????????????????# ??????????????????????????????? | | ?????????????????????????????????????????????????? | | ?????????????????????????????????????????????????? | | ?????????????????????????????????????????????????? | | ?????????????????????????????????????????????????? | | ?????????????????????????????????????????????????? | | ?????????????????????????????????????????????????? | | ?????????????????????????????????????????????????? | | ?????????????????????????????????????????????????? | | ?????????????????????????????????????????????????? | | | | | | | | | | | | | | | | | +----------------------------------------------------+ Best States ------------- Heat Dissipation 28 Energy Generation 12 Energy Capacity 265 Matter Stores 300 Matter Capacity 300 Sight Range 16 Robot Scan Range 14 Terrain Scan Density 10 Additional Mass Support 6 Evasion (%) 62 Targeting Accuracy 5 Recoil Reduction 2 Offensive Hacking 10 Item Schematics ----------------- None Robot Schematics ------------------ None Fabricated ------------ Nothing Repaired ---------- Nothing Alien Tech Used ----------------- None Achievements -------------- None Challenges ------------ None Game ------ Seed CatalystPhysicsBlade Manual? 0 Play Time 00:18:12 Cumulative 16.0 hours Start 2025.10.06 @ 20:29:29 End 2025.10.06 @ 20:42:08 Sessions 1 Manual Loads 0 Difficulty Rogue Special Mode None Game No. 46 Rogue 39 Adventurer 7 Explorer 0 Win Type - Total 0 Types 0/0/0/0/0/0/0/0/0/0 Lore% 3 Gallery% 17 Achievement% 17 Wizard Run 0 Options --------- Layout 1 ASCII 0 Keyboard 1 Movement Vi Keybinds 0 Fullscreen 1 Font 24/Smallcaps Map View 76x35 Zoom Use 0% Tactical HUD 1 Map Filters NONE Filters NONE Steam 1 RUN: 485fb422-6847-4258-ab76-4a782485f2eb